[Event "Venerd-dì-rapid!"]
[Site "Chess.com"]
[Date "2020.04.17"]
[Round "6"]
[White "fausto2p"]
[Black "karab89"]
[Result "0-1"]
[WhiteElo "934"]
[BlackElo "1279"]
[TimeControl "720+3"]
[EndTime "8:31:39 PDT"]
[Termination "karab89 ha vinto per scaccomatto"]

1. d4 {[%clk 0:12:00.3]} 1... e6 {[%clk 0:11:56.4]} 2. Nf3 {[%clk 0:11:54.6]}
2... d5 {[%clk 0:11:59.3]} 3. c4 {[%clk 0:11:44.2]} 3... c5 {[%clk 0:12:00.6]}
4. cxd5 {[%clk 0:11:40.8]} 4... exd5 {[%clk 0:11:59.6]} 5. Nc3 {[%clk
0:11:39.9]} 5... Nc6 {[%clk 0:11:57.5]} 6. e3 {[%clk 0:11:26.7]} 6... c4 {[%clk
0:11:54.8]} 7. a3 {[%clk 0:11:09.4]} 7... Bf5 {[%clk 0:11:53.8]} 8. b3 {[%clk
0:10:54.9]} 8... b5 {[%clk 0:11:31.5]} 9. Nxb5 {[%clk 0:10:50.9]} 9... Qa5+
{[%clk 0:11:32.7]} 10. Bd2 {[%clk 0:10:04.7]} 10... Qxb5 {[%clk 0:11:30.8]} 11.
bxc4 {[%clk 0:09:53.2]} 11... dxc4 {[%clk 0:11:27.9]} 12. Rb1 {[%clk 0:09:47.6]}
12... Qxb1 {[%clk 0:11:17.8]} 13. Qxb1 {[%clk 0:09:42.5]} 13... Bxb1 {[%clk
0:11:20.7]} 14. Bxc4 {[%clk 0:09:41.8]} 14... Bxa3 {[%clk 0:11:19]} 15. Bb5
{[%clk 0:09:37.2]} 15... Be4 {[%clk 0:11:16.5]} 16. Ng5 {[%clk 0:09:29.7]} 16...
Bxg2 {[%clk 0:11:10.8]} 17. Rg1 {[%clk 0:09:25.1]} 17... Bd5 {[%clk 0:11:00.5]}
18. Nh3 {[%clk 0:08:30.2]} 18... g6 {[%clk 0:10:48.3]} 19. Nf4 {[%clk
0:08:28.9]} 19... Be4 {[%clk 0:10:29.1]} 20. Rg3 {[%clk 0:08:04.2]} 20... a6
{[%clk 0:10:26.8]} 21. Bc4 {[%clk 0:07:54.9]} 21... Nf6 {[%clk 0:10:14.9]} 22.
f3 {[%clk 0:07:43]} 22... Bc2 {[%clk 0:09:56.1]} 23. h4 {[%clk 0:06:41.1]} 23...
Rb8 {[%clk 0:09:31.5]} 24. Bxa6 {[%clk 0:06:25.4]} 24... Bb4 {[%clk 0:09:28.1]}
25. Bc4 {[%clk 0:05:17.4]} 25... Na5 {[%clk 0:08:59]} 26. Bxb4 {[%clk 0:04:52]}
26... Nxc4 {[%clk 0:08:34.1]} 27. Bc5 {[%clk 0:04:40.8]} 27... Nxe3 {[%clk
0:08:11.8]} 28. Kd2 {[%clk 0:04:41.4]} 28... Nf5 {[%clk 0:08:02.2]} 29. Rh3
{[%clk 0:04:30.4]} 29... Ba4 {[%clk 0:07:59.8]} 30. h5 {[%clk 0:04:20.2]} 30...
g5 {[%clk 0:07:30.5]} 31. Nd3 {[%clk 0:04:02]} 31... Nd7 {[%clk 0:07:15.4]} 32.
Ba7 {[%clk 0:02:56.1]} 32... Rb7 {[%clk 0:06:44.4]} 33. Bc5 {[%clk 0:02:55.7]}
33... Nxc5 {[%clk 0:06:37.2]} 34. dxc5 {[%clk 0:02:55.4]} 34... O-O {[%clk
0:06:32.6]} 35. Rh2 {[%clk 0:02:40.9]} 35... Rd8 {[%clk 0:06:24.6]} 36. Re2
{[%clk 0:02:36.8]} 36... Rb3 {[%clk 0:06:19.8]} 37. Re5 {[%clk 0:02:08.6]} 37...
Rdxd3+ {[%clk 0:06:14.3]} 38. Ke2 {[%clk 0:02:09.3]} 38... Nd4+ {[%clk
0:06:08.3]} 39. Kf1 {[%clk 0:01:15.7]} 39... Rxf3+ {[%clk 0:05:22.2]} 40. Ke1
{[%clk 0:01:13.3]} 40... Rb1+ {[%clk 0:04:55.1]} 41. Kd2 {[%clk 0:01:09.9]}
41... Rd1# {[%clk 0:04:58]} 0-1

[Event "Venerd-dì-rapid!"]
[Site "Chess.com"]
[Date "2020.04.17"]
[Round "6"]
[White "donaldnecesito"]
[Black "BAKR1980"]
[Result "1-0"]
[WhiteElo "1758"]
[BlackElo "1538"]
[TimeControl "720+3"]
[EndTime "8:31:54 PDT"]
[Termination "donaldnecesito ha vinto per abbandono"]

1. e4 {[%clk 0:12:02.9]} 1... e5 {[%clk 0:12:00]} 2. Nf3 {[%clk 0:12:02.6]} 2...
d6 {[%clk 0:11:57.5]} 3. Bc4 {[%clk 0:12:01.1]} 3... Be6 {[%clk 0:11:56.1]} 4.
Bb3 {[%clk 0:11:49.8]} 4... Bxb3 {[%clk 0:11:49.5]} 5. axb3 {[%clk 0:11:51.7]}
5... Nf6 {[%clk 0:11:50.6]} 6. d3 {[%clk 0:11:49.4]} 6... Be7 {[%clk 0:11:52.1]}
7. Nc3 {[%clk 0:11:40.7]} 7... O-O {[%clk 0:11:53.4]} 8. O-O {[%clk 0:11:36]}
8... Nbd7 {[%clk 0:11:36.1]} 9. d4 {[%clk 0:11:37.6]} 9... exd4 {[%clk 0:11:36]}
10. Nxd4 {[%clk 0:11:38.7]} 10... c5 {[%clk 0:11:25.5]} 11. Nf5 {[%clk 0:11:36]}
11... Ne5 {[%clk 0:11:14.6]} 12. f4 {[%clk 0:11:18.7]} 12... Ng6 {[%clk
0:11:15.4]} 13. Qf3 {[%clk 0:10:36.9]} 13... a6 {[%clk 0:10:13.3]} 14. h4 {[%clk
0:10:32.5]} 14... Nd7 {[%clk 0:09:59.6]} 15. h5 {[%clk 0:10:08.4]} 15... Nh4
{[%clk 0:09:57.2]} 16. Qg4 {[%clk 0:09:44.7]} 16... Nxf5 {[%clk 0:09:48.1]} 17.
Qxf5 {[%clk 0:09:17.7]} 17... Bf6 {[%clk 0:09:40.6]} 18. g4 {[%clk 0:08:54.4]}
18... Bd4+ {[%clk 0:08:54.4]} 19. Kg2 {[%clk 0:08:55.7]} 19... Qh4 {[%clk
0:08:52.7]} 20. Qxd7 {[%clk 0:08:44.6]} 20... f5 {[%clk 0:08:54]} 21. Rf3 {[%clk
0:06:51.3]} 21... Qxg4+ {[%clk 0:07:37.4]} 22. Rg3 {[%clk 0:06:49]} 22... Qxh5
{[%clk 0:07:21.3]} 23. Be3 {[%clk 0:06:35.8]} 23... Bf6 {[%clk 0:07:07.7]} 24.
Nd5 {[%clk 0:06:28.9]} 24... Qe2+ {[%clk 0:06:54.7]} 25. Kg1 {[%clk 0:06:10.7]}
25... Bxb2 {[%clk 0:05:15.4]} 26. c3 {[%clk 0:04:01.1]} 26... Rf7 {[%clk
0:04:57.8]} 27. Nf6+ {[%clk 0:03:53.8]} 27... Kf8 {[%clk 0:04:52.8]} 28. Nxh7+
{[%clk 0:03:39.8]} 28... Kg8 {[%clk 0:04:53.9]} 29. Nf6+ {[%clk 0:03:38]} 29...
Kf8 {[%clk 0:04:55.3]} 30. Qxd6+ {[%clk 0:03:27.7]} 30... Re7 {[%clk 0:04:48]}
31. Bxc5 {[%clk 0:02:40.9]} 31... Qe3+ {[%clk 0:02:25.4]} 32. Rxe3 {[%clk
0:02:36.4]} 1-0

[Event "Venerd-dì-rapid!"]
[Site "Chess.com"]
[Date "2020.04.17"]
[Round "6"]
[White "sergiodone"]
[Black "markk000"]
[Result "1-0"]
[WhiteElo "1304"]
[BlackElo "1544"]
[TimeControl "720+3"]
[EndTime "8:40:34 PDT"]
[Termination "sergiodone ha vinto per scaccomatto"]

1. e4 {[%clk 0:11:55.6]} 1... e5 {[%clk 0:11:47.2]} 2. d4 {[%clk 0:11:55.9]}
2... exd4 {[%clk 0:11:44.3]} 3. Nf3 {[%clk 0:11:57.4]} 3... c5 {[%clk
0:11:40.2]} 4. Bc4 {[%clk 0:11:58.7]} 4... Nf6 {[%clk 0:11:34.7]} 5. Nbd2 {[%clk
0:11:43.8]} 5... Nc6 {[%clk 0:11:28.2]} 6. c3 {[%clk 0:11:45.4]} 6... dxc3
{[%clk 0:11:19.4]} 7. bxc3 {[%clk 0:11:46.4]} 7... Bd6 {[%clk 0:11:13.6]} 8. O-O
{[%clk 0:11:39.2]} 8... O-O {[%clk 0:11:06.4]} 9. h3 {[%clk 0:11:40.7]} 9... Bc7
{[%clk 0:11:00.1]} 10. Bd3 {[%clk 0:11:18.9]} 10... Re8 {[%clk 0:10:51.3]} 11.
Bc2 {[%clk 0:11:19.5]} 11... h6 {[%clk 0:10:42]} 12. Re1 {[%clk 0:11:02.1]}
12... Rb8 {[%clk 0:10:34]} 13. Rb1 {[%clk 0:10:57.9]} 13... d5 {[%clk
0:10:22.2]} 14. exd5 {[%clk 0:10:46.3]} 14... Rxe1+ {[%clk 0:10:12.8]} 15. Qxe1
{[%clk 0:10:35]} 15... Nxd5 {[%clk 0:10:03.1]} 16. Ne4 {[%clk 0:10:19.5]} 16...
Qe7 {[%clk 0:09:50.6]} 17. Bb3 {[%clk 0:10:16]} 17... Nf4 {[%clk 0:09:34.8]} 18.
Bxf4 {[%clk 0:10:14.4]} 18... Bxf4 {[%clk 0:09:30.2]} 19. Rd1 {[%clk 0:09:59.3]}
19... b6 {[%clk 0:09:21.9]} 20. Bd5 {[%clk 0:10:00.1]} 20... Bd7 {[%clk
0:09:14.9]} 21. Nh2 {[%clk 0:08:12.9]} 21... Kf8 {[%clk 0:08:55.8]} 22. Ng4
{[%clk 0:08:13.6]} 22... f5 {[%clk 0:08:44.4]} 23. g3 {[%clk 0:07:23.7]} 23...
Bc7 {[%clk 0:08:19.2]} 24. Nxh6 {[%clk 0:06:22.5]} 24... gxh6 {[%clk 0:07:51.4]}
25. Qe3 {[%clk 0:05:24.2]} 25... fxe4 {[%clk 0:07:35.8]} 26. Qxh6+ {[%clk
0:05:24.4]} 26... Qg7 {[%clk 0:07:34.4]} 27. Qh4 {[%clk 0:04:59.4]} 27... Na5
{[%clk 0:05:26]} 28. Bxe4 {[%clk 0:04:54.9]} 28... Bc6 {[%clk 0:05:14.5]} 29.
Bf5 {[%clk 0:04:39]} 29... Kf7 {[%clk 0:03:45]} 30. c4 {[%clk 0:04:35.4]} 30...
Qf6 {[%clk 0:03:46.6]} 31. Qh7+ {[%clk 0:04:31]} 31... Qg7 {[%clk 0:03:48.4]}
32. Be6+ {[%clk 0:04:31.7]} 32... Kf8 {[%clk 0:03:46.1]} 33. Qf5+ {[%clk
0:04:28.1]} 33... Ke8 {[%clk 0:03:34.3]} 34. Qh5+ {[%clk 0:04:26.4]} 34... Kf8
{[%clk 0:03:32.4]} 35. Qf5+ {[%clk 0:04:25]} 35... Ke7 {[%clk 0:03:34.7]} 36.
Bd7 {[%clk 0:04:06.5]} 36... Qf6 {[%clk 0:02:55.1]} 37. Re1+ {[%clk 0:04:02.7]}
37... Kf7 {[%clk 0:02:45.8]} 38. Be6+ {[%clk 0:03:57.8]} 38... Kg7 {[%clk
0:02:40.3]} 39. Qg4+ {[%clk 0:03:47.9]} 39... Qg6 {[%clk 0:02:39.8]} 40. Qe2
{[%clk 0:02:15]} 40... Re8 {[%clk 0:02:12.5]} 41. Qb2+ {[%clk 0:02:13.8]} 41...
Kh6 {[%clk 0:02:03.9]} 42. Qd2+ {[%clk 0:02:04.8]} 42... Qg5 {[%clk 0:01:59.7]}
43. Qc3 {[%clk 0:01:50]} 43... Bd7 {[%clk 0:01:20.7]} 44. h4 {[%clk 0:01:50.7]}
44... Qg7 {[%clk 0:01:14.4]} 45. Qe3+ {[%clk 0:01:47.2]} 45... Kh7 {[%clk
0:01:09.4]} 46. Qe4+ {[%clk 0:01:42.1]} 46... Kh8 {[%clk 0:01:07.4]} 47. Qd5
{[%clk 0:01:27.9]} 47... Bxe6 {[%clk 0:01:05.3]} 48. Qh5+ {[%clk 0:01:07.6]}
48... Kg8 {[%clk 0:00:47]} 49. Qxe8+ {[%clk 0:01:08.5]} 49... Qf8 {[%clk
0:00:47.8]} 50. Qxe6+ {[%clk 0:01:09.9]} 50... Qf7 {[%clk 0:00:47.7]} 51. Qg4+
{[%clk 0:01:07.3]} 51... Qg7 {[%clk 0:00:48.1]} 52. Re8+ {[%clk 0:01:05.8]}
52... Kf7 {[%clk 0:00:49.1]} 53. Qd7+ {[%clk 0:01:03.8]} 53... Kg6 {[%clk
0:00:49.6]} 54. Re6+ {[%clk 0:01:00.8]} 54... Kh7 {[%clk 0:00:46.4]} 55. Re7
{[%clk 0:01:02.1]} 55... Qxe7 {[%clk 0:00:48.2]} 56. Qxe7+ {[%clk 0:01:03]}
56... Kg6 {[%clk 0:00:51.1]} 57. Qxc7 {[%clk 0:01:04.3]} 57... Nxc4 {[%clk
0:00:53.7]} 58. Qc6+ {[%clk 0:00:59.3]} 58... Kf5 {[%clk 0:00:52.8]} 59. Qd7+
{[%clk 0:00:47.1]} 59... Ke4 {[%clk 0:00:53.6]} 60. Kg2 {[%clk 0:00:40.5]} 60...
a5 {[%clk 0:00:52.4]} 61. h5 {[%clk 0:00:34.5]} 61... Ne5 {[%clk 0:00:53.7]} 62.
Qb7+ {[%clk 0:00:31]} 62... Kf5 {[%clk 0:00:54.5]} 63. h6 {[%clk 0:00:32.1]}
63... Kg6 {[%clk 0:00:51.9]} 64. h7 {[%clk 0:00:33.2]} 64... Nf7 {[%clk
0:00:54.1]} 65. Qxf7+ {[%clk 0:00:31.9]} 65... Kxf7 {[%clk 0:00:56.4]} 66. h8=Q
{[%clk 0:00:33.2]} 66... Ke6 {[%clk 0:00:58.8]} 67. Qc3 {[%clk 0:00:33.8]} 67...
Kd5 {[%clk 0:01:00.4]} 68. f3 {[%clk 0:00:35.4]} 68... b5 {[%clk 0:01:01.9]} 69.
g4 {[%clk 0:00:37.1]} 69... c4 {[%clk 0:01:04.5]} 70. Kf2 {[%clk 0:00:34.1]}
70... b4 {[%clk 0:01:06.9]} 71. Qc2 {[%clk 0:00:35.4]} 71... Kd4 {[%clk
0:01:09.3]} 72. Qe4+ {[%clk 0:00:34.4]} 72... Kc3 {[%clk 0:01:11.1]} 73. Ke2
{[%clk 0:00:35.6]} 73... Kb2 {[%clk 0:01:13.3]} 74. Kd2 {[%clk 0:00:32.3]} 74...
c3+ {[%clk 0:01:15.4]} 75. Kd1 {[%clk 0:00:29]} 75... Kxa2 {[%clk 0:01:17.6]}
76. Qc2+ {[%clk 0:00:28.6]} 76... Ka3 {[%clk 0:01:18.3]} 77. Kc1 {[%clk
0:00:24.5]} 77... a4 {[%clk 0:01:18.9]} 78. Kb1 {[%clk 0:00:12.3]} 78... b3
{[%clk 0:01:11.7]} 79. Qc1+ {[%clk 0:00:07.7]} 79... b2 {[%clk 0:01:13.3]} 80.
Qxc3# {[%clk 0:00:06.1]} 1-0